Cogmind - Beta 13 @@@ ROGUE MODE // 2024.05.10 @ 22:13:13 Player: Bace Troncons Result: Destroyed by 81-PBP(R) with Subdweller Laser Performance ------------- Evolutions (0) 0 Regions Visited (2) 400 Robots Destroyed (24) 120 Value Destroyed (686) 686 Prototype IDs (2) 40 Alien Tech Used (0) 0 Bonus (0) 0 TOTAL SCORE: 1246 Bonus ------- None Cogmind --------- Core Integrity 0/250 Matter 1/300 Energy 250/250 System Corruption 1% Temperature Cool (6) Movement Treading (320) Ox2 Location -10/Subcaves Parts ------- > --- POWER (1) -------- Ion Engine > --- PROPULSION (2) --- Light Treads Light Treads > --- UTILITY (2) ------ Huge Storage Unit Sensor Array > --- WEAPON (2) ------- Autogun Autogun > --- INVENTORY (25) --- Ion Engine Light Ion Engine Light Treads Light Treads Aluminum Leg Aluminum Leg Aluminum Leg Small Storage Unit Huge Storage Unit Structural Scanner Signal Interpreter ECM Suite Utility Shielding Hacking Suite Field Recycling Unit (0) Autogun Autogun Barrage Gun Grenade Launcher Grenade Launcher Grenade Launcher Datajack Multitool Mining Claw Peak State ------------ > --- POWER ------------ Light Nuclear Core > --- PROPULSION ------- Light Treads Light Treads > --- UTILITY ---------- Huge Storage Unit Sensor Array > --- WEAPON ----------- Autogun Autogun > --- INVENTORY -------- Ion Engine Ion Engine Ion Engine Light Ion Engine Light Treads Light Treads Light Treads Aluminum Leg Aluminum Leg Aluminum Leg Small Storage Unit Huge Storage Unit Structural Scanner Signal Interpreter ECM Suite Utility Shielding Hacking Suite Field Recycling Unit Autogun Autogun Grenade Launcher Grenade Launcher Grenade Launcher Grenade Launcher Datajack [Rating: 14] Favorites ----------- Power Light Nuclear Core Engine Ion Engine Power Core Light Nuclear Core Propulsion Light Treads Treads Light Treads Utility Huge Storage Unit Device Sensor Array Storage Huge Storage Unit Weapon Autogun Energy Gun Medium Laser Ballistic Gun Autogun Launcher Grenade Launcher Special Weapon Multitool Slashing Weapon Mining Claw Build | -11 -10 -10 ------- Run | Yrd Mat Sub Slots Evolved . | . . . Power . | . . . Propulsion . | . . . Utility . | . . . Weapon . | . . . Parts Attached 30 | 6 17 7 Power 6 | 1 4 1 Engine 4 | 1 2 1 Core 2 | . 2 . Reactor . | . . . Propulsion 5 | 2 2 1 Treads 5 | 2 2 1 Leg . | . . . Wheel . | . . . Hover . | . . . Flight . | . . . Utility 4 | 1 3 . Device 1 | . 1 . Storage 3 | 1 2 . Processor . | . . . Hackware . | . . . Protection . | . . . Artifact . | . . . Weapon 15 | 2 8 5 Energy Gun 3 | 2 1 . Energy Cannon . | . . . Ballistic Gun 8 | . 6 2 Ballistic Cannon . | . . . Launcher 2 | . 1 1 Special Weapon 1 | . . 1 Impact Weapon . | . . . Slashing Weapon 1 | . . 1 Piercing Weapon . | . . . Special Melee Weapon . | . . . Unidentified Prototypes . | . . . Parts Lost 4 | . 2 2 Power 2 | . 1 1 Propulsion 1 | . . 1 Utility . | . . . Weapon 1 | . 1 . Highest Loss Streak 1 | . 1 1 To Critical Strikes 1 | . . 1 Average Slot Usage (%) 96 | . 98 92 Engine 5 | . 6 3 Core 6 | . 6 3 Treads 27 | . 27 28 Device 10 | . 9 14 Storage 17 | . 18 14 Energy Gun 4 | . 6 . Ballistic Gun 20 | . 21 20 Launcher 1 | . . 4 Naked Turns . | . . . Heaviest Build 169 | 14 169 92 Greatest Support 40 | 40 40 40 Greatest Overweight (x) 4 | . 4 2 Average Overweight (x) 2 | . 2 2 Largest Inventory Capacity 25 | 8 25 25 Average Capacity 24 | 7 24 25 Most Carried 25 | 2 25 25 Average Carried 18 | 1 17 24 Final Capacity 25 | 8 25 25 Final Carried 25 | 2 25 24 Class Distribution -------------------- 100% | Mutant Dominant Class ---------------- Mutant | -10/Materials Mutant | -10/Subcaves Resources | -11 -10 -10 ----------- Run | Yrd Mat Sub Matter Collected 634 | 148 343 143 Remotely . | . . . Salvage Created 797 | . 539 258 Parts 53 | . 34 19 Haulers Intercepted 1 | . 1 . Recyclers Shooed 1 | . 1 . Parts Field Recycled . | . . . Retrieved Matter . | . . . Parts Self-Destructed . | . . . Prevented . | . . . Kills | -11 -10 -10 ------- Run | Yrd Mat Sub Combat Hostiles Destroyed 18 | . 10 8 Guns 13 | . 10 3 AOE 5 | . . 5 Classes Destroyed 7 | . 6 1 Hauler 1 | . 1 . Recycler 1 | . 1 . Operator 3 | . 3 . Watcher 1 | . 1 . Swarmer 3 | . 3 . Grunt 7 | . 7 . Subdweller 8 | . . 8 Best Kill Streak 5 | . 5 3 Combat Bots Only 3 | . 3 3 Max Kills in Single Turn 2 | . 1 2 Gunslinging . | . . . Exploded 2 | . . 2 Melee . | . . . Uniques/NPCs Destroyed . | . . . Combat | -11 -10 -10 -------- Run | Yrd Mat Sub Hostile Shots Fired 121 | . 88 33 Missed 24 | . 19 5 Damage Taken 1467 | . 882 585 Core 263 | . 158 105 Absorbed by Shields . | . . . Regen/Repaired (Parts) 136 | . 136 . Core Remaining (%) 100 | 100 . . Volleys Fired 91 | . 62 29 Largest 2 | . 2 2 Hottest 100 | . 100 53 Shots Fired 166 | . 119 47 Gun 152 | . 118 34 Cannon . | . . . Launcher 9 | . 1 8 Special 5 | . . 5 Kinetic 102 | . 68 34 Thermal 50 | . 45 5 Explosive 9 | . 1 8 Electromagnetic 5 | . 5 . Robot Hit Streak 11 | . 8 11 Robot Miss Streak 8 | . 8 1 Penetration Max . | . . . Secondary Targets 2 | . 2 . Max Gunslinging Chain 1 | . 1 . Shots Hit Robots 95 | . 69 26 Core Hits 47 | . 32 15 Critical Kills 1 | . 1 . Critical Parts Destroyed . | . . . Critical Strikes 2 | . 2 . Burn 1 | . 1 . Destroy 1 | . 1 . Melee Attacks 7 | . . 7 Impact . | . . . Slashing 7 | . . 7 Piercing . | . . . Sneak Attacks . | . . . Combat Hostiles . | . . . Follow-up Attacks . | . . . Damage Inflicted 1666 | . 859 807 Guns 1147 | . 850 297 Cannons . | . . . Explosions 510 | . . 510 Melee . | . . . Ramming 9 | . 9 . Kinetic 773 | . 476 297 Thermal 336 | . 336 . Explosive 510 | . . 510 Electromagnetic 38 | . 38 . Impact . | . . . Slashing . | . . . Piercing . | . . . Highest Corruption 1 | . 1 1 Average Corruption 1 | . 1 1 Corruption Purged . | . . . Corruption Blocked . | . . . Effects 17 | . 9 8 Message Errors 4 | . 2 2 Matter Fused 4 | . . 4 Heat Flow Errors 1 | . 1 . Energy Discharges 3 | . 2 1 Data Loss (minor) 2 | . 2 . Data Loss (major) 1 | . 1 . Misfires 2 | . 1 1 Overload Shots . | . . . Overflow Damage . | . . . Projectiles . | . . . Explosions . | . . . Melee . | . . . Knockbacks . | . . . Impact . | . . . Kinetic . | . . . Secondary . | . . . Self-Inflicted Damage . | . . . Shots . | . . . Rammed 3 | . 3 . Targets Rammed 3 | . 3 . Kicked . | . . . Crushed . | . . . Highest Temperature 335 | . 335 . Average Temperature 116 | . 116 . Received Heat Transfer 540 | . 408 132 Siege Activations . | . . . Robots Corrupted . | . . . Combat Hostiles . | . . . Parts Fried . | . . . Impact Corruptions . | . . . Robots Melted . | . . . Combat Hostiles . | . . . Parts Melted 4 | . 4 . Heat Transferred 1073 | . 1073 . Parts Sabotaged . | . . . Parts Stolen . | . . . Parts Stripped . | . . . Power Chain Reactions . | . . . Alert | -11 -10 -10 ------- Run | Yrd Mat Sub Peak Influence 122 | . 122 . Initial . | . . . Average 31 | . 32 . Maximum Alert Level . | . . . Low Security (%) 100 | 100 100 . Level 1 . | . . . Level 2 . | . . . Level 3 . | . . . Level 4 . | . . . Level 5 . | . . . High Security . | . . . Max Security . | . . . Squads Dispatched 3 | . 3 . Investigation . | . . . Extermination . | . . . Reinforcement 3 | . 3 . Assault . | . . . Garrison . | . . . Intercept . | . . . Searches Triggered . | . . . Construction Impeded . | . . . Haulers Reinforced . | . . . Active Scanning Responses . | . . . Cargo Convoy Interrupts . | . . . Stealth | -11 -10 -10 --------- Run | Yrd Mat Sub Distress Signals 1 | . 1 . Communications Jammed . | . . . Distress Signals . | . . . Times Spotted 39 | . 30 9 Peak Tracking Total 4 | . 4 3 Tactical Retreats 1 | . 1 . Traps | -11 -10 -10 ------- Run | Yrd Mat Sub Traps Triggered 2 | . 2 . Indirectly . | . . . Trap Hack Attempts . | . . . Triggered . | . . . Disarmed . | . . . Reprogrammed . | . . . Reused . | . . . Traps Extracted . | . . . Installed . | . . . Triggered . | . . . Machines | -11 -10 -10 ---------- Run | Yrd Mat Sub Machines Disabled . | . . . Max in Single Turn . | . . . Machines Repaired . | . . . Machines Dismantled . | . . . Machines Sabotaged . | . . . Overloaded Fab Kills . | . . . Hacking | -11 -10 -10 --------- Run | Yrd Mat Sub Machines Accessed 4 | . 4 . Terminals 3 | . 3 . Fabricators . | . . . Repair Stations 1 | . 1 . Recycling Units . | . . . Scanalyzers . | . . . Garrison Access . | . . . Total Hacks 9 | . 9 . Successful 6 | . 6 . Failed 3 | . 3 . Catastrophic . | . . . Database Lockouts . | . . . Manual 4 | . 4 . Terminals 5 | . 5 . Fabricators . | . . . Repair Stations 4 | . 4 . Recycling Units . | . . . Scanalyzers . | . . . Garrison Access . | . . . Terminal Hacks 4 | . 4 . Prototype ID Bank 1 | . 1 . Terminal Index 1 | . 1 . Locate Traps 1 | . 1 . Hauler Manifests 1 | . 1 . Fabricator Hacks . | . . . Repair Station Hacks 2 | . 2 . Scan Component 1 | . 1 . Repair 1 | . 1 . Recycling Unit Hacks . | . . . Scanalyzer . | . . . Garrison Access Hacks . | . . . Unauthorized Hacks . | . . . Terminals . | . . . Fabricators . | . . . Repair Stations . | . . . Recycling Units . | . . . Scanalyzers . | . . . Garrison Access . | . . . Data Cores Recovered . | . . . Used . | . . . Hacking Detections 3 | . 3 . Full Trace Events 1 | . 1 . Feedback Events . | . . . Feedback Blocked . | . . . Robot Schematics Acquired . | . . . Robots Built . | . . . Authchips . | . . . Time . | . . . Total Robot Build Rating . | . . . Part Schematics Acquired . | . . . Parts Built . | . . . Authchips . | . . . Time . | . . . Total Part Build Rating . | . . . Parts Repaired 1 | . 1 . Time 26 | . 26 . Parts Recycled . | . . . Recycled Matter . | . . . Retrieved Matter . | . . . Retrieved Components . | . . . Parts Scanalyzed . | . . . Part Schematics Acquired . | . . . Parts Damaged . | . . . Bothacking | -11 -10 -10 ------------ Run | Yrd Mat Sub Used RIF Installer . | . . . Robots Hacked . | . . . Non-combat . | . . . Combat . | . . . Robot Hacks Applied . | . . . Relay Couplers Released . | . . . Fabnet Peak Effective % . | . . . Robots Rewired . | . . . Allies Hacked . | . . . Hacks Repelled . | . . . Allies | -11 -10 -10 -------- Run | Yrd Mat Sub Total Allies . | . . . Largest Group . | . . . Highest-Rated Group . | . . . Highest-Rated Ally . | . . . Total Orders . | . . . Ally Attacks . | . . . Total Damage . | . . . Kills . | . . . Allies Corrupted . | . . . Allies Melted . | . . . Intel | -11 -10 -10 ------- Run | Yrd Mat Sub Robot Analysis Total . | . . . Derelict Logs Recovered 1 | . . 1 Drone Launches . | . . . Drone Recoveries . | . . . Exploration | -11 -10 -10 ------------- Run | Yrd Mat Sub Turns Passed 3811 | 115 2745 951 Spaces Moved 969 | 65 642 262 Core 2 | 2 . . Treads 967 | 63 642 262 Legs . | . . . Wheels . | . . . Hover . | . . . Flight . | . . . Fastest Speed 50 | 50 160 320 Average Speed 325 | 156 345 320 Slowest Speed 480 | 160 480 320 Overloaded Moves . | . . . Propulsion Burnouts . | . . . Robots Hopped . | . . . Cave-ins Triggered . | . . . Exploration Rate (%) 41 | 7 97 21 Regions Visited 2 Branch Regions 1 Pre-discovered Areas . | . . . Known Exits Taken . | . . . Unknown Exits Taken 2 | 1 1 . Scrap Searched 1 | . . 1 Spaces Dug . | . . . Terrain Destroyed 31 | . 7 24 Melee . | . . . Projectile . | . . . AOE 31 | . 7 24 Terrain Rammed . | . . . Walls Destroyed . | . . . Machines Disabled . | . . . Actions | -11 -10 -10 --------- Run | Yrd Mat Sub Total 1443 | 75 1048 320 Wait 308 | 3 292 13 Move 967 | 64 641 262 Hop . | . . . Pick Up 24 | 2 21 1 Fast Attach 19 | 6 12 1 Attach 3 | . 1 2 Detach 6 | . 6 . Swap 8 | . 4 4 Drop 7 | . 6 1 Fire 91 | . 62 29 Melee 7 | . . 7 Ram . | . . . Kick . | . . . Crush 3 | . 3 . Escape Stasis . | . . . Rewire . | . . . Trap . | . . . Miscellaneous . | . . . Route ------- -11/Scrapyard -10/Materials (discovered 6 exits: [*Mat x3] / [*Min x2] / [*Sub]) -10/Subcaves History --------- Turn | Location | Event 32 | -11/Scrapyard | Discovered new exit (range 15) 116 | -11/Scrapyard | Entered Materials 315 | -10/Materials | Build established: Mutant 320 | -10/Materials | Discovered new exit (range 16) 400 | -10/Materials | Discovered new exit (range 11) 1145 | -10/Materials | Discovered new exit (range 15) 1543 | -10/Materials | Discovered new exit (range 10) 1732 | -10/Materials | Core integrity fell below 50% 1866 | -10/Materials | Repaired Lgt. Treads 2338 | -10/Materials | Discovered new exit (range 11) 2827 | -10/Materials | Discovered new exit (range 3) 2861 | -10/Materials | Entered Subcaves 2922 | -10/Subcaves | Learned Materials machine intel 3132 | -10/Subcaves | A Subdweller sparked back to life 3132 | -10/Subcaves | A Subdweller sparked back to life 3132 | -10/Subcaves | A Subdweller sparked back to life 3512 | -10/Subcaves | Shifting Twisted Machinery released Unknown Ballistic Gun 3554 | -10/Subcaves | Core integrity fell below 20% 3660 | -10/Subcaves | Shifting Twisted Machinery released Sub. Power Source 3812 | -10/Subcaves | Destroyed by 81-PBP(R) with Subdweller Laser Last Messages --------------- 03381_ Subatomizers dissect the Sub. Monowheel. 03400_ Dropped Grenade Launcher. 03401_ Acquired Multitool. Unknown Ballistic Gun falls loose from the Twisted Machinery. 03513_ System corrupted: Matter fused (-7). 03554_ JM-8Z8(R) destroyed. 03560_ Acquired 47 matter. 03594_ 0O-T81(R) destroyed. 03608_ H1-3TC(O) puts together Sub. Monowheel. 03625_ H1-3TC(O) collects matter. 03636_ Acquired Unknown Ballistic Gun. Sub. Power Source falls loose from the Twisted Machinery. 03667_ H1-3TC(O) collects matter. 03681_ System corrupted: Matter fused (-7). 03766_ System corrupted: Matter fused (-9). 03804_ B3-COX(R) destroyed. 03806_ Critical hit (Destroy). 03806_ Lgt. Treads destroyed. Map ----- +----------------------------------------------------+ | """ """##???####?????????????? | | ""###"# ""#????##" #?????????????? | | ### "" #???## ##???# ""#?????????????? | | ! ##?## """##???# #??## ""#?????????????? | | ! #???##""""##### #??# #?????????????? | | =######"""" ##"" ##??# #?????????????? | | [ ##"""" """##?# #?????????????? | | " # """"#?# ##?????????????? | | ""##### """#?# #??????????????? | | ### #####???#" ""### #??????????????? | | ##?#####???????#"" "" #??????????????? | | ##?????????????##" """" ##??????????????? | | ###??????????????#" """ ##???????????????? | | ?????????????????#" *" #????????????????? | | ?????????????????##""" ##???????????????? | | ??????????????????### #???????????????? | | ????????????????????## #???????????????? | | ?????????????????????# #???????????????? | | ????????????????????## #???????????????? | | ????????????????????# ##??????????????? | | ????????????????????### #??????????????? | | ?????????????????????# ## ##?????????????? | | ?????????????????????## #### #?????????????? | | ?????????????????????## # #?????????????? | | ?????????????????????# ####?????????????? | | ?????????????????????# ##@&#????????????????? | | ?????????????????????#####R#????????????????? | | ?????????????????????????#[= ???????????????? | | ????????????????????????? #?????????????? | | ????????????????????????? ###?????????????? | | ????????????????????????# ##???????????????? | | ???????????????????????? #????????????????? | | ???????????????????????? #????????????????? | | ??????????????????????? #????????????????? | | ??????????????????????? #????????????????? | | ???????????????????????# #?????????????????? | | ???????????????????????###??????????????????? | | ????????????????????????????????????????????? | | ????????????????????????????????????????????? | | ????????????????????????????????????????????? | | ????????????????????????????????????????????? | | ????????????????????????????????????????????? | | ????????????????????????????????????????????? | | ????????????????????????????????????????????? | | ????????????????????????????????????????????? | | ????????????????????????????????????????????? | | ????????????????????????????????????????????? | | ????????????????????????????????????????????? | | ????????????????????????????????????????????? | | ????????????????????????????????????????????? | +----------------------------------------------------+ Best States ------------- Heat Dissipation 25 Energy Generation 14 Energy Capacity 250 Matter Stores 300 Matter Capacity 300 Sight Range 16 Robot Scan Range 14 Terrain Scan Density 10 Evasion (%) 40 Recoil Reduction 2 Item Schematics ----------------- None Robot Schematics ------------------ None Fabricated ------------ Nothing Alien Tech Used ----------------- None Achievements -------------- Tank Challenges ------------ None Game ------ Seed CouplerCorruptionFlamer Manual? 0 Play Time 00:18:24 Cumulative 66.7 hours Start 2024.05.10 @ 21:55:56 End 2024.05.10 @ 22:13:13 Sessions 1 Manual Loads 0 Difficulty Rogue Special Mode None Game No. 102 Rogue 102 Adventurer 0 Explorer 0 Win Type - Total 1 Types 1/0/0/0/0/0/0/0/0 Lore% 32 Gallery% 39 Achievement% 31 Wizard Run 0 Options --------- Layout 1 ASCII 0 Keyboard 1 Movement Numpad Keybinds 0 Fullscreen 1 Font 24/Smallcaps Map View 50x35 Zoom Use 0% Tactical HUD 1 Map Filters NONE Filters NONE Steam 1 RUN: eb878703-bd5f-4bd1-8041-73689690606c